bitfinex/quotes_ETHUSD_20250314
["timestamp","ask_amount","ask_price","bid_price","bid_amount"]
[1741915497915,9.10471,1878.6,1878.2,5.32419]
[1741915498092,14.42807,1878.6,1878.1,6.10798797]
[1741915498295,5.32349,1878.5,1878.1,6.10798797]
[1741915498908,5.32349,1878.5,1878.1,6.16122768]
[1741915499433,5.32349,1878.5,1878.1,6.10798797]
[1741915501128,8.32371,1878.4,1878.1,0.78351797]
[1741915501309,8.32371,1878.4,1878.1,0.55]
[1741915501511,3.0,1878.4,1878.1,0.55]
[1741915501712,3.0,1878.4,1878.2,0.06651074]
[1741915501713,6.12927,1878.3,1878.2,0.06651074]
[1741915501926,6.12927,1878.3,1877.9,5.87507]
[1741915502126,6.12927,1878.3,1878.0,0.06653709]
[1741915502733,6.12927,1878.3,1878.0,0.46520348]
[1741915503899,11.45347,1878.3,1878.0,0.46520348]
[1741915504375,6.12927,1878.3,1878.0,0.06653709]
[1741915504637,3.0,1878.4,1878.1,1.3091]
[1741915504804,3.0,1878.4,1878.1,1.36233967]
[1741915505004,3.0,1878.4,1878.2,5.39083201]
[1741915505831,6.14,1878.6,1878.3,5.32396]
[1741915506032,6.14,1878.6,1878.4,6.08136]
[1741915506204,6.14,1878.6,1878.3,5.32396]
[1741915506403,6.14,1878.6,1878.5,0.06657661]
[1741915506635,6.14,1878.6,1878.4,0.06656344]
[1741915506818,6.14,1878.6,1878.5,5.32339]
[1741915507023,8.32269,1878.8,1878.5,0.06656344]
[1741915507635,5.32269,1878.8,1878.5,0.06656344]
[1741915507806,6.08766,1878.9,1878.5,6.46120078]
[1741915510016,3.0,1879.0,1878.8,5.32252]
[1741915510221,3.0,1879.0,1878.7,6.68556]
[1741915510421,3.0,1879.0,1878.9,0.06612876]
[1741915510608,3.0,1879.0,1878.8,0.55]
[1741915510808,3.0,1879.0,1878.9,0.06612876]
[1741915511334,8.32197,1879.0,1878.9,0.06612876]
[1741915511508,5.32228,1878.9,1878.6,0.39846479]
[1741915511925,5.32254,1878.8,1878.7,0.0653517]
[1741915512124,6.13714,1878.8,1878.7,0.0653517]
[1741915512612,6.13714,1878.8,1878.4,6.32525627]
[1741915512845,6.13714,1878.8,1878.7,0.0653517]
[1741915513043,11.4599,1878.8,1878.4,6.27202479]
[1741915513237,6.13714,1878.8,1878.7,0.0653517]
[1741915513443,0.8146,1878.8,1878.5,5.32328]
[1741915513650,10.64476,1878.9,1878.7,0.0653517]
[1741915513819,5.32227,1878.9,1878.5,6.48804363]
[1741915514215,5.32227,1878.9,1878.6,0.0653517]
[1741915514533,5.32265,1878.8,1878.6,0.0653517]
[1741915515643,5.32227,1878.9,1878.6,0.0653517]
[1741915517444,9.07218,1879.0,1878.7,5.32268]
[1741915517445,3.7502,1879.0,1878.7,5.32268]
[1741915518050,0.7874,1879.2,1878.9,5.32214]
[1741915518250,3.7874,1879.2,1878.9,5.32214]
[1741915518544,3.7874,1879.2,1879.0,0.0653517]
[1741915518849,3.7874,1879.2,1878.9,5.32214]
[1741915519013,9.10882,1879.2,1878.8,6.09227]
[1741915519217,9.10882,1879.2,1879.0,0.0653517]
[1741915519418,9.10882,1879.2,1878.8,7.233777]
[1741915519618,9.10882,1879.2,1879.1,0.0653517]
[1741915519845,9.10882,1879.2,1878.8,7.233777]
[1741915520018,9.10882,1879.2,1879.1,0.0653517]
[1741915520219,5.32171,1879.1,1878.8,1.911307]
[1741915520420,9.10882,1879.2,1878.8,7.233767]
[1741915521262,9.10882,1879.2,1878.8,7.233647]
[1741915522052,3.7874,1879.2,1878.9,6.0456047]
[1741915522259,9.13294,1879.4,1878.9,6.0456147]
[1741915522432,3.0,1879.2,1878.9,6.0456147]
[1741915523168,8.32142,1879.2,1878.9,6.0456147]
[1741915523342,8.32144,1879.2,1878.9,0.7233647]
[1741915524543,6.10143,1879.1,1878.7,5.32256]
[1741915524970,0.7797,1879.1,1878.8,5.3224]
[1741915525370,8.32144,1879.2,1878.8,5.3224]
[1741915525570,3.0,1879.2,1878.8,5.32234]
[1741915525768,8.32152,1879.2,1878.9,0.532234]
[1741915525962,8.32152,1879.2,1878.8,5.32234]
[1741915526158,5.32175,1879.1,1878.7,5.32281]
[1741915526353,8.32152,1879.2,1878.8,5.32243]
[1741915527579,8.32152,1879.2,1878.8,10.64483]
[1741915527872,8.32152,1879.2,1878.8,11.41603]
[1741915528065,8.32152,1879.2,1878.8,7.235203]
[1741915528267,8.32152,1879.2,1878.8,12.557533]
[1741915528465,3.0,1879.2,1878.9,5.32225]
[1741915528661,3.0,1879.2,1878.8,7.235133]
[1741915528848,8.32144,1879.2,1878.8,7.235133]
[1741915529276,8.32144,1879.2,1878.8,12.557473]
[1741915529772,8.32144,1879.2,1878.8,7.235133]
[1741915531050,3.0,1879.2,1878.8,7.2883541]
[1741915531250,3.0,1879.2,1878.9,6.05094541]
[1741915531666,3.0,1879.2,1879.0,0.06506206]
[1741915533082,3.0,1879.2,1879.0,5.38698206]
[1741915541286,10.94462309,1879.6,1879.3,5.32113]
[1741915541485,0.8009,1879.6,1879.2,5.87118]
[1741915541787,3.8009,1879.6,1879.3,5.97262185]
[1741915542154,0.8009,1879.6,1879.3,5.97262185]
[1741915542377,6.07531,1879.8,1879.4,5.32072]
[1741915542564,5.32,1879.7,1879.5,0.06432488]
[1741915542754,5.32,1879.7,1879.3,0.587118]
[1741915542951,5.32028,1879.6,1879.4,0.06432488]
[1741915543155,14.80395599,1879.8,1879.4,5.38496488]
[1741915543391,9.48397599,1879.8,1879.4,7.27047517]
[1741915543684,9.48397599,1879.8,1879.4,12.59113517]
[1741915543870,5.32001,1879.7,1879.4,7.27047517]
[1741915544188,5.32001,1879.7,1879.4,1.19363517]
[1741915544365,10.64027,1879.7,1879.4,1.19363517]
[1741915544561,5.32001,1879.7,1879.4,0.06432488]
[1741915544779,9.48394599,1879.8,1879.4,5.38510488]
[1741915545285,6.07536,1879.8,1879.4,5.38510488]
[1741915545890,3.7556,1879.8,1879.4,5.38497488]
[1741915546076,3.0,1879.8,1879.5,5.32034]
[1741915546269,21.91846,1880.0,1879.6,5.852264]
[1741915546270,22.67925,1880.0,1879.6,5.852264]
[1741915546591,11.21995,1880.0,1879.6,5.91623359]
[1741915547090,6.07995,1880.0,1879.6,5.91623359]
[1741915547288,6.4737307,1880.0,1879.6,5.91623359]
[1741915547453,6.4737307,1880.0,1879.7,0.59162336]
[1741915547658,6.07995,1880.0,1879.7,0.59162336]
[1741915547852,6.07995,1880.0,1879.8,0.06329845]
[1741915548059,6.07996,1880.0,1879.8,0.06329845]
[1741915548491,6.07996,1880.0,1879.6,5.852194]
[1741915548676,6.07996,1880.0,1879.7,0.5852194]
[1741915548987,6.07996,1880.0,1879.7,0.64851785]
[1741915549580,5.31954,1879.9,1879.7,0.06329845]
[1741915549894,6.07996,1880.0,1879.6,5.852294]
[1741915550387,6.07996,1880.0,1879.7,0.06329845]
[1741915550589,6.07996,1880.0,1879.6,5.852294]
[1741915550788,6.07996,1880.0,1879.7,0.06329845]
[1741915550962,6.07996,1880.0,1879.7,0.59155925]
[1741915551285,6.07996,1880.0,1879.8,0.06329845]
[1741915551871,6.07996,1880.0,1879.6,0.532034]
[1741915552082,9.07996,1880.0,1879.9,0.06329845]
[1741915552281,5.31947,1879.9,1879.6,0.532034]
[1741915553567,5.31972,1879.8,1879.6,0.532034]
[1741915553896,5.31972,1879.8,1879.1,10.7948]
[1741915553897,6.13617,1879.5,1879.1,10.7948]
[1741915554190,0.8154,1879.5,1879.2,5.32139]
[1741915554486,6.13597,1879.5,1879.1,11.44795]
[1741915554688,6.13597,1879.5,1879.1,11.44791]
[1741915554888,6.13597,1879.5,1879.1,6.12634]
[1741915555095,6.13597,1879.5,1879.2,0.612634]
[1741915555266,0.8154,1879.5,1879.2,5.933934]
[1741915555664,0.8154,1879.5,1879.2,0.612634]
[1741915555990,0.8154,1879.5,1879.2,5.934034]
[1741915556186,0.8306,1879.7,1879.4,5.32076]
[1741915556360,11.45995,1879.8,1879.4,7.178848]
[1741915556564,5.32011,1879.7,1879.4,0.55]
[1741915556780,11.45995,1879.8,1879.4,0.55]
[1741915556960,11.45995,1879.8,1879.4,5.87078]
[1741915557294,16.7799,1879.8,1879.4,5.87078]
[1741915557497,16.77989,1879.8,1879.4,5.87078]
[1741915557701,11.45994,1879.8,1879.4,12.310565]
[1741915557869,6.14,1879.8,1879.5,0.7769]
[1741915558069,3.0,1879.8,1879.5,6.09735]
[1741915558370,3.0,1879.8,1879.6,5.32027]
[1741915559597,16.77865,1880.0,1879.6,5.32027]
[1741915559794,5.31951,1879.9,1879.6,1.141762]
[1741915559993,5.31973,1879.8,1879.5,6.09735]
[1741915560893,6.13651,1879.9,1879.5,11.41777]
[1741915561063,11.45616,1879.9,1879.5,6.09732]
[1741915561266,11.45616,1879.9,1879.5,7.294136]
[1741915561695,11.45616,1879.9,1879.6,0.06086677]
[1741915561996,6.13651,1879.9,1879.6,0.06086677]
[1741915562998,3.0,1880.0,1879.7,5.31996]
[1741915563196,3.0,1880.0,1879.8,6.17821051]
[1741915563394,11.4587,1880.2,1879.9,5.93713105]
[1741915563395,6.14,1880.2,1879.9,5.93713105]
[1741915563601,3.0,1880.1,1879.9,0.61782105]
[1741915563895,3.0,1880.1,1880.0,0.06059051]
[1741915564096,8.31886,1880.1,1880.0,0.06059051]
[1741915564421,5.31916,1880.0,1879.7,0.55]
[1741915565201,8.31886,1880.1,1879.7,5.86989]
[1741915565363,13.63794,1880.1,1879.7,5.86989]
[1741915565567,13.63794,1880.1,1879.7,7.583516]
[1741915565967,5.31918,1880.0,1879.7,7.583516]
[1741915566168,8.31886,1880.1,1879.7,2.263626]
[1741915566368,8.31886,1880.1,1879.7,7.583446]
[1741915566593,3.0,1880.1,1879.8,5.3197]
[1741915566800,6.11901,1880.3,1880.0,0.7909]
[1741915566996,5.31831,1880.3,1880.0,0.7909]
[1741915567199,5.72555737,1880.4,1880.0,6.11001]
[1741915567368,5.31801,1880.4,1880.0,6.11001]
[1741915568302,6.11724,1880.5,1880.1,5.8686]
[1741915568480,5.31774,1880.5,1880.1,6.53455]
[1741915568799,10.63571,1880.5,1880.1,1.21595]
[1741915569275,3.0,1880.5,1880.1,6.53464]
[1741915569476,3.0,1880.5,1880.2,5.31841]
[1741915570595,10.71912114,1880.9,1880.1,6.58798215]
[1741915570596,6.119,1880.8,1880.3,6.14126]
[1741915570780,8.31718,1880.7,1880.4,0.614126]
[1741915570982,6.119,1880.8,1880.4,5.932116]
[1741915571997,5.31725,1880.7,1880.4,0.614126]
[1741915572199,9.11903,1880.8,1880.4,0.614126]
[1741915572406,8.3169,1880.8,1880.4,0.614126]
[1741915572592,3.0,1880.8,1880.6,6.09701]
[1741915572796,3.0,1880.8,1880.6,0.7798]
[1741915573197,8.31696,1880.8,1880.6,0.7798]
[1741915573711,13.63409,1880.8,1880.4,6.734216]
[1741915573879,5.31717,1880.7,1880.4,1.416426]
[1741915574080,8.31696,1880.8,1880.4,6.78758027]
[1741915574280,8.31696,1880.8,1880.5,0.67875803]
[1741915575878,3.0,1880.8,1880.5,5.99644803]
[1741915576083,3.0,1880.8,1880.5,11.31398803]
[1741915576285,5.31681,1880.9,1880.5,5.99640803]
[1741915576590,5.31681,1880.9,1880.6,0.05857875]
[1741915577112,5.31688,1880.8,1880.6,0.05857875]
[1741915577687,5.31716,1880.7,1880.6,0.05857875]
[1741915578190,5.31716,1880.7,1880.4,1.416426]
[1741915578391,5.31716,1880.7,1880.5,0.05857875]
[1741915578600,5.31688,1880.8,1880.5,0.05857875]
[1741915578936,10.634,1880.8,1880.5,0.74319768]
[1741915579085,5.3173,1880.7,1880.5,0.74319768]
[1741915579288,5.3173,1880.7,1880.5,0.05857875]
[1741915579585,5.31688,1880.8,1880.5,0.05857875]
[1741915580214,5.31721,1880.7,1880.5,0.05857875]
[1741915580409,5.31688,1880.8,1880.5,0.05857875]
[1741915580718,0.819,1881.0,1880.6,5.31743]
[1741915580719,9.13538,1881.0,1880.6,5.31743]
[1741915580909,8.31638,1881.0,1880.7,1.315143]
[1741915581105,5.31661,1880.9,1880.7,0.84193932]
[1741915581289,5.31688,1880.8,1880.7,0.05853932]
[1741915581696,5.31688,1880.8,1880.5,0.83657162]
[1741915581902,8.31637,1881.0,1880.7,0.05853932]
[1741915582097,8.31637,1881.0,1880.6,0.55]
[1741915582287,3.0,1881.0,1880.8,0.05853932]
[1741915582513,3.0,1881.0,1880.7,5.31716]
[1741915582710,3.0,1881.0,1880.9,0.05853932]
[1741915582891,3.0,1881.0,1880.8,1.3091]
[1741915583087,3.0,1881.0,1880.9,0.05853932]
[1741915583487,3.0,1881.0,1880.8,1.3091]
[1741915583688,5.31604,1881.1,1880.9,0.05790853]
[1741915583888,3.0,1881.1,1880.9,0.05790853]
[1741915584096,3.0,1881.1,1880.8,6.67913342]
[1741915584428,3.0,1881.1,1880.8,11.99574342]
[1741915584613,3.0,1881.1,1880.9,0.05790853]
[1741915584795,5.31519,1881.4,1881.0,5.31619]
[1741915584995,5.31519,1881.4,1881.1,0.86510853]
[1741915585197,6.4626489,1881.5,1881.1,0.86510853]
[1741915585522,5.3153,1881.4,1881.1,0.05790853]
[1741915585826,5.847,1881.3,1881.1,0.05790853]
[1741915586192,0.53153,1881.3,1881.1,0.05790853]
[1741915587337,5.84717,1881.3,1881.1,0.05790853]
[1741915587505,11.16285,1881.3,1881.1,0.05790853]
[1741915587708,5.31575,1881.2,1881.1,0.05790853]
[1741915587901,12.06846509,1881.2,1881.1,0.05790853]
[1741915588231,5.31639,1881.0,1880.6,0.83156813]
[1741915588519,9.75271509,1881.2,1880.6,0.7784]
[1741915588520,10.63347,1880.9,1880.6,0.7784]
[1741915588735,6.14889,1880.8,1880.3,6.09659]
[1741915589023,5.932209,1880.7,1880.3,6.09659]
[1741915589191,5.932209,1880.7,1880.3,6.14976702]
[1741915589395,5.31747,1880.6,1880.3,0.83157702]
[1741915589591,5.932209,1880.7,1880.3,6.09667]
[1741915589995,5.932209,1880.7,1880.3,6.14984702]
[1741915590200,6.14869,1880.8,1880.4,5.31787]
[1741915590734,5.31688,1880.8,1880.4,5.31779]
[1741915590905,5.3166,1880.9,1880.5,5.86755]
[1741915591632,5.3166,1880.9,1880.6,0.05370135]
[1741915591839,6.67054716,1880.9,1880.6,0.05370135]
[1741915594238,5.31708,1880.8,1880.6,0.05370135]
[1741915594407,6.67069716,1880.9,1880.4,5.31788]
[1741915594728,6.67069716,1880.9,1880.7,0.05370135]
[1741915594904,0.66706972,1880.8,1880.5,5.31771]
[1741915595408,5.31675,1880.9,1880.5,5.31771]
[1741915595606,5.31688,1880.8,1880.5,5.31771]
[1741915596708,5.31675,1880.9,1880.5,10.63532]
[1741915597035,5.31675,1880.9,1880.5,10.63511]
[1741915597234,5.31675,1880.9,1880.5,5.3175]
[1741915598638,5.31675,1880.9,1880.5,10.63502]
[1741915598934,6.14,1881.0,1880.6,6.0751]
[1741915599105,6.14,1881.0,1880.8,5.3167]
[1741915599304,6.14,1881.0,1880.9,6.0744]
[1741915600009,6.5374389,1881.5,1881.1,5.31578]
[1741915600326,3.0,1881.5,1881.2,5.31558]
[1741915600503,8.31496,1881.5,1881.2,0.7578]
[1741915600709,9.75788,1881.5,1881.2,0.7578]
[1741915600912,4.44292,1881.5,1881.2,6.07355]
[1741915601218,9.75785,1881.5,1881.2,0.7578]
[1741915601417,4.44292,1881.5,1881.2,6.07354]
[1741915601741,6.11384,1881.7,1881.3,5.3154]
[1741915602113,5.31462,1881.6,1881.2,6.07347]
[1741915602316,5.31492,1881.5,1881.2,0.7578]
[1741915603413,5.31466,1881.6,1881.2,6.07354]
[1741915604135,5.31466,1881.6,1881.2,6.07339]
[1741915604341,5.31466,1881.6,1881.2,6.12654182]
[1741915604515,6.457511,1881.6,1881.2,6.12654182]
[1741915604907,5.31506,1881.5,1881.2,0.7578]
[1741915605212,5.3154,1881.4,1881.0,6.07006]
[1741915605408,5.3154,1881.4,1881.0,6.06991]
[1741915605614,10.63014,1881.5,1881.1,5.316]
[1741915605817,5.3153,1881.4,1881.0,6.06991]
[1741915606245,6.64239816,1881.5,1881.1,5.31597]
[1741915606647,6.64239816,1881.5,1881.2,0.05355686]
[1741915607245,11.95752816,1881.5,1881.2,0.05355686]
[1741915607415,5.31501,1881.5,1881.2,0.05355686]
[1741915607816,5.31463,1881.6,1881.2,5.36920686]
[1741915608249,5.31463,1881.6,1881.3,0.8253]
[1741915608619,5.31463,1881.6,1881.4,0.05355686]
[1741915609936,5.31436,1881.7,1881.4,0.05355686]
[1741915610247,5.31482,1881.6,1881.4,0.05355686]
[1741915611949,8.31438,1881.7,1881.4,0.05355686]
[1741915612347,13.62896,1881.7,1881.4,0.05355686]
[1741915612643,5.31463,1881.6,1881.4,0.05355686]
[1741915613247,5.31463,1881.6,1881.2,6.12227]
[1741915613439,5.31463,1881.6,1881.5,0.05271614]
[1741915613641,8.31438,1881.7,1881.3,5.31522]
[1741915613953,8.31438,1881.7,1881.5,0.05271614]
[1741915614145,8.31438,1881.7,1881.3,5.31522]
[1741915614349,8.31438,1881.7,1881.6,0.05271614]
[1741915614517,5.31467,1881.6,1881.2,6.12245]
[1741915614853,5.31462,1881.6,1881.2,0.8067]
[1741915615031,5.31507,1881.5,1881.2,0.8067]
[1741915615422,5.31507,1881.5,1881.2,1.418972]
[1741915616532,6.09022,1881.6,1881.0,0.8191]
[1741915616533,5.31547,1881.3,1881.0,0.8191]
[1741915616733,5.31579,1881.2,1881.0,0.8191]
[1741915616976,6.13427,1881.3,1881.0,0.8191]
[1741915617140,5.31522,1881.4,1881.0,0.8191]
[1741915617348,5.31552,1881.3,1881.0,0.8191]
[1741915618055,5.31552,1881.3,1880.9,5.31635]
[1741915618056,5.31552,1881.3,1880.9,0.55]
[1741915618265,5.31631,1881.1,1880.8,0.8191]
[1741915618425,5.31643,1881.0,1880.6,11.26636]
[1741915618624,5.31643,1881.0,1880.6,16.58368]
[1741915618848,5.31643,1881.0,1880.6,11.26636]
[1741915619357,5.31631,1881.1,1880.6,11.26636]
[1741915619525,10.63254,1881.1,1880.7,6.443766]
[1741915620325,5.31632,1881.0,1880.7,1.126636]
[1741915621053,5.31603,1881.1,1880.8,0.55]
[1741915621241,5.31603,1881.1,1880.9,0.7986]
[1741915621953,5.31577,1881.2,1880.9,0.7986]
[1741915622157,5.31562,1881.3,1880.9,6.11506]
[1741915622458,5.31562,1881.3,1880.9,11.43145]
[1741915622655,3.7942,1881.5,1881.0,0.55]
[1741915622864,3.0,1881.5,1881.1,11.40397]
[1741915623070,3.0,1881.5,1881.2,5.31573]
[1741915623760,8.31492,1881.5,1881.1,6.08808]
[1741915624155,5.31532,1881.4,1881.1,0.7722]
[1741915624649,10.63073,1881.4,1881.0,6.66939]
[1741915624831,6.09262,1881.4,1881.0,6.66939]
[1741915625039,8.3149,1881.5,1881.1,5.31601]
[1741915625238,8.3149,1881.5,1881.0,6.66923]
[1741915625474,5.31529,1881.4,1881.0,13.165283]
[1741915625763,8.3149,1881.5,1881.1,10.63188]
[1741915625764,3.0,1881.5,1881.1,10.63188]
[1741915625936,8.31512,1881.5,1881.1,5.31585]
[1741915626133,9.09239,1881.5,1881.1,5.31585]
[1741915626333,14.40755,1881.5,1881.1,5.31585]
[1741915626533,5.31521,1881.4,1881.1,0.7848873]
[1741915626747,5.31521,1881.4,1881.0,0.8031]
[1741915626748,5.3156,1881.3,1881.0,0.8031]
[1741915626970,5.31519,1881.4,1881.0,6.11931]
[1741915627351,8.31503,1881.5,1881.1,0.55]
[1741915627662,8.31503,1881.5,1881.1,5.86593]
[1741915628033,8.31503,1881.5,1881.1,11.18179]
[1741915628237,3.0,1881.5,1881.2,5.31573]
[1741915628439,3.0,1881.5,1881.2,10.68442316]
[1741915628638,5.31465,1881.6,1881.4,0.7933]
[1741915628639,3.0,1881.6,1881.4,0.7933]
[1741915629439,3.0,1881.7,1881.4,6.10845]
[1741915631267,5.31496,1881.5,1881.1,6.514349]
[1741915631445,6.09503,1881.6,1881.1,5.36899953]
[1741915631645,6.09503,1881.6,1881.2,5.31572]
[1741915631958,5.31483,1881.6,1881.2,10.63124]
[1741915632162,13.11898309,1881.7,1881.3,6.12745]
[1741915632358,8.31436,1881.7,1881.3,6.12745]
[1741915632672,3.0,1881.7,1881.4,5.31517]
[1741915633471,3.0,1881.7,1881.3,11.44278]
[1741915633675,3.0,1881.7,1881.4,6.459448]
[1741915634171,8.31449,1881.7,1881.4,1.144278]
[1741915634363,5.31474,1881.6,1881.3,0.812]
[1741915634555,5.31474,1881.6,1881.1,7.30755995]
[1741915634749,5.31474,1881.6,1881.2,5.31574]
[1741915634954,5.31474,1881.6,1881.2,10.63129]
[1741915635674,8.31441,1881.7,1881.3,5.31543]
[1741915636881,8.31441,1881.7,1881.3,5.31527]
[1741915637180,3.0,1881.7,1881.4,6.09798]
[1741915637375,10.89909309,1881.8,1881.4,6.09778]
[1741915637376,6.09447,1881.8,1881.4,6.09778]
[1741915638079,5.31427,1881.8,1881.4,11.41286]
[1741915638380,5.31427,1881.8,1881.5,1.141286]
[1741915638576,3.0,1881.8,1881.5,6.456146]
[1741915639279,8.31406,1881.8,1881.5,6.456146]
[1741915639586,3.0,1881.8,1881.5,6.456146]
[1741915640687,5.31444,1881.7,1881.4,0.7828]
[1741915641257,5.31444,1881.7,1881.4,6.09796]
[1741915641457,8.31425,1881.8,1881.4,11.41312]
[1741915641694,8.31425,1881.8,1881.4,6.09796]
[1741915641899,7.80462309,1881.8,1881.2,6.10597]
[1741915642066,5.31494,1881.5,1881.2,0.7905]
[1741915642561,6.09938,1881.6,1881.2,6.10623]
[1741915642880,6.09938,1881.6,1881.2,6.1061]
[1741915644001,6.09938,1881.6,1881.2,6.10605]
[1741915644651,11.41423,1881.6,1881.2,6.10605]
[1741915644851,5.31552,1881.3,1881.0,0.8126]
[1741915645671,11.39444,1881.4,1881.0,0.8126]
[1741915645860,6.079,1881.4,1881.0,0.8126]
[1741915646056,6.079,1881.4,1881.0,6.12875]
[1741915646259,5.31492,1881.5,1881.0,6.12875]
[1741915646260,5.31492,1881.5,1881.1,5.31584]
[1741915646569,6.93490831,1881.5,1881.0,6.12875]
[1741915646774,5.31529,1881.4,1881.0,6.12875]
[1741915646968,5.31492,1881.5,1881.0,11.44483]
[1741915647170,5.31519,1881.4,1881.0,6.12868]
[1741915647589,10.63009,1881.5,1881.0,6.12868]
[1741915647888,10.63009,1881.5,1881.0,12.057758]
[1741915648496,5.31519,1881.4,1881.0,6.741548]
[1741915648695,5.70858595,1881.5,1881.0,6.741508]
[1741915648996,5.31523,1881.4,1881.0,6.741508]
[1741915649464,3.0,1881.6,1881.2,5.31564]
[1741915649664,5.31505,1881.5,1881.2,0.531564]
[1741915649887,5.31519,1881.4,1881.1,0.7602]
[1741915650085,6.13445,1881.5,1881.1,0.7602]
[1741915650280,8.31472,1881.6,1881.2,5.31561]
[1741915650666,8.31472,1881.6,1881.1,6.07623]
[1741915651202,5.31501,1881.5,1881.1,6.07623]
[1741915651372,5.31501,1881.5,1881.2,0.607623]
[1741915651573,6.1347,1881.4,1881.0,6.07645]
[1741915652396,11.45006,1881.4,1881.0,6.07645]
[1741915652594,6.1347,1881.4,1881.0,6.07645]
[1741915653079,6.13469,1881.4,1881.0,6.07645]
[1741915653806,11.45012,1881.4,1881.0,6.07645]
[1741915654007,6.13469,1881.4,1881.0,7.215753]
[1741915655302,6.13469,1881.4,1881.1,5.31602]
[1741915655675,6.13469,1881.4,1881.0,7.215753]
[1741915656079,3.8194,1881.4,1881.0,7.215613]
[1741915656295,9.13459,1881.4,1881.0,7.215613]
[1741915656475,9.13459,1881.4,1881.1,0.7215613]
[1741915657413,3.8194,1881.4,1881.1,6.0374513]
[1741915657785,3.8194,1881.4,1881.1,0.7215613]
[1741915657786,9.13459,1881.4,1881.1,0.7215613]
[1741915659882,9.13459,1881.4,1881.0,11.39242]
[1741915660113,9.13459,1881.4,1881.0,5.31611]
[1741915660298,5.62502309,1881.3,1880.7,5.31711]
[1741915660499,5.31616,1881.1,1880.7,5.31711]
[1741915660708,5.31616,1881.1,1880.8,0.531711]
[1741915662118,5.31616,1881.1,1880.7,5.31698]
[1741915662314,5.31679,1880.9,1880.5,5.31773]
[1741915662612,6.13998,1880.8,1880.4,10.63569]
[1741915662819,0.823,1880.8,1880.5,5.31767]
[1741915662982,0.823,1880.8,1880.5,6.381218]
[1741915663183,5.31632,1881.0,1880.6,5.31743]
[1741915663411,6.07392,1881.0,1880.6,5.31743]
[1741915663583,3.7576,1881.0,1880.6,5.31725]
[1741915663783,3.7576,1881.0,1880.6,6.14435]
[1741915664315,3.7576,1881.0,1880.7,5.931505]
[1741915665012,3.7576,1881.0,1880.8,5.31687]
[1741915665231,6.14,1881.1,1880.9,5.31648]
[1741915665433,3.7608,1881.2,1880.9,5.31648]
[1741915665884,9.07657,1881.2,1880.8,5.31682]
[1741915666090,9.07657,1881.2,1880.7,5.931585]
[1741915666286,5.31617,1881.1,1880.6,5.86739]
[1741915666499,6.08121,1881.0,1880.5,6.13859]
[1741915667039,6.08121,1881.0,1880.4,5.318]
[1741915667040,5.3166,1880.9,1880.4,5.31782]
[1741915667314,10.63421,1880.8,1880.4,5.31793]
[1741915667518,0.7924,1880.7,1880.4,5.31793]
[1741915667717,6.10957,1880.7,1880.3,6.07532]
[1741915667923,6.10957,1880.7,1880.3,6.682852]
[1741915668917,11.2625,1880.9,1880.5,5.31771]
[1741915669298,16.57925,1880.9,1880.5,5.31771]
[1741915669491,11.2625,1880.9,1880.5,5.31771]
[1741915670094,6.1335,1880.9,1880.5,5.31771]
[1741915670607,11.45034,1880.9,1880.5,5.31771]
[1741915670795,5.31689,1880.8,1880.4,5.31795]
[1741915670992,5.31689,1880.8,1880.4,6.5180362]
[1741915671400,6.1335,1880.9,1880.4,6.5178662]
[1741915671599,6.1335,1880.9,1880.5,5.31768]
[1741915671812,6.1335,1880.9,1880.4,6.5178662]
[1741915672136,6.5323111,1880.9,1880.4,6.5178662]
[1741915672343,5.3169,1880.8,1880.4,6.5178662]
[1741915672822,5.3169,1880.8,1880.4,11.8357262]
[1741915672992,6.5323111,1880.9,1880.5,6.50128262]
[1741915674952,5.317,1880.8,1880.5,1.18357262]
[1741915675127,5.317,1880.8,1880.4,5.31778]
[1741915676547,0.7742,1880.6,1880.3,6.07532]
[1741915676717,0.7742,1880.6,1880.3,11.39341]
[1741915677063,0.7742,1880.6,1880.4,5.318]
[1741915679362,0.7742,1880.6,1880.3,6.07519]
[1741915679514,0.7742,1880.6,1880.3,7.269566]
[1741915679845,6.09177,1880.6,1880.2,0.55]
[1741915680049,11.40937,1880.6,1880.2,0.55]
[1741915680342,6.09177,1880.6,1880.2,11.18698]
[1741915680643,6.09177,1880.6,1880.2,5.86845]
[1741915680808,6.09177,1880.6,1880.2,6.98718]
[1741915681716,0.7742,1880.6,1880.3,5.31817]
[1741915681911,6.09165,1880.6,1880.2,6.98714]
[1741915683148,6.09165,1880.6,1880.2,12.30553]
[1741915683548,6.09165,1880.6,1880.2,6.98712]
[1741915683750,5.31777,1880.5,1880.1,5.31886]
[1741915683955,6.08733,1880.4,1880.3,0.04991123]
[1741915684130,6.08733,1880.4,1880.2,0.05052877]
[1741915684330,6.08733,1880.4,1880.0,5.31896]
[1741915684532,6.08733,1880.4,1880.0,5.85617473]
[1741915687934,5.31872,1880.2,1879.8,6.09769]
[1741915688153,0.8237,1880.1,1879.8,5.31959]
[1741915688847,0.8237,1880.1,1879.8,10.6391]
[1741915689458,0.8237,1880.2,1879.9,5.31924]
[1741915689846,8.31825,1880.4,1879.9,1.833895]
[1741915690053,9.09523,1880.4,1880.0,5.31896]
[1741915690232,5.31832,1880.3,1880.0,5.31896]
[1741915690433,9.09523,1880.4,1880.0,5.31896]
[1741915690656,14.41346,1880.4,1880.0,5.31896]
[1741915691360,5.3183,1880.3,1880.0,5.31896]
[1741915692629,9.09523,1880.4,1880.1,6.08426]